[Event "*** Titled Tuesday Blitz"]
[Site "Chess.com"]
[Date "2021.04.27"]
[Round "1"]
[White "MerryPoppies"]
[Black "gonzaga23"]
[Result "0-1"]
[WhiteElo "2096"]
[BlackElo "2504"]
[TimeControl "180+1"]
[EndTime "10:08:25 PDT"]
[Termination "gonzaga23 won on time"]

1. d4 {[%clk 0:02:59.1]} 1... Nf6 {[%clk 0:02:59.3]} 2. Nf3 {[%clk 0:02:57.9]}
2... e6 {[%clk 0:02:56]} 3. Bf4 {[%clk 0:02:57.3]} 3... c5 {[%clk 0:02:55.5]} 4.
e3 {[%clk 0:02:55]} 4... Nc6 {[%clk 0:02:51.5]} 5. c3 {[%clk 0:02:54.6]} 5... b6
{[%clk 0:02:52]} 6. Nbd2 {[%clk 0:02:53.6]} 6... Bb7 {[%clk 0:02:52.5]} 7. Be2
{[%clk 0:02:53.3]} 7... Be7 {[%clk 0:02:53.1]} 8. O-O {[%clk 0:02:53.5]} 8...
O-O {[%clk 0:02:53.7]} 9. Rc1 {[%clk 0:02:53.7]} 9... Rc8 {[%clk 0:02:51.9]} 10.
Ne5 {[%clk 0:02:51.5]} 10... Nxe5 {[%clk 0:02:46.7]} 11. Bxe5 {[%clk 0:02:50.4]}
11... d6 {[%clk 0:02:47]} 12. Bg3 {[%clk 0:02:50]} 12... Qd7 {[%clk 0:02:42]}
13. Bf3 {[%clk 0:02:49.9]} 13... cxd4 {[%clk 0:02:37.3]} 14. exd4 {[%clk
0:02:47.7]} 14... Rfd8 {[%clk 0:02:28.2]} 15. Bxb7 {[%clk 0:02:41.5]} 15... Qxb7
{[%clk 0:02:29.1]} 16. Qf3 {[%clk 0:02:41.9]} 16... Qxf3 {[%clk 0:02:29.1]} 17.
Nxf3 {[%clk 0:02:41.6]} 17... Ne4 {[%clk 0:02:29.6]} 18. Bf4 {[%clk 0:02:35.8]}
18... b5 {[%clk 0:02:30]} 19. Nd2 {[%clk 0:02:26.9]} 19... Nf6 {[%clk
0:02:25.1]} 20. Rfe1 {[%clk 0:02:20.2]} 20... b4 {[%clk 0:02:21]} 21. c4 {[%clk
0:01:54.4]} 21... a5 {[%clk 0:02:20.6]} 22. b3 {[%clk 0:01:39.2]} 22... a4
{[%clk 0:02:20.3]} 23. Ne4 {[%clk 0:01:29.9]} 23... Nxe4 {[%clk 0:02:06.9]} 24.
Rxe4 {[%clk 0:01:30.8]} 24... d5 {[%clk 0:02:05.4]} 25. cxd5 {[%clk 0:00:57.8]}
25... Rxc1+ {[%clk 0:02:06.3]} 26. Bxc1 {[%clk 0:00:55.3]} 26... Rxd5 {[%clk
0:02:06.9]} 27. bxa4 {[%clk 0:00:34]} 27... Ra5 {[%clk 0:02:02.1]} 28. Re2
{[%clk 0:00:26.4]} 28... Kf8 {[%clk 0:01:24]} 29. Kf1 {[%clk 0:00:22.8]} 29...
Rxa4 {[%clk 0:01:24.1]} 30. Rc2 {[%clk 0:00:22.7]} 30... Ke8 {[%clk 0:01:20.4]}
31. Ke2 {[%clk 0:00:22]} 31... Ra5 {[%clk 0:01:03]} 32. Kd3 {[%clk 0:00:20.8]}
32... Rd5 {[%clk 0:00:56.6]} 33. Ke4 {[%clk 0:00:13.5]} 33... f5+ {[%clk
0:00:54.7]} 34. Ke3 {[%clk 0:00:11.6]} 34... Bf6 {[%clk 0:00:40.5]} 35. Bb2
{[%clk 0:00:11.3]} 35... Ra5 {[%clk 0:00:34.5]} 36. Bc1 {[%clk 0:00:09]} 36...
Kd7 {[%clk 0:00:32.7]} 37. f4 {[%clk 0:00:09.1]} 37... Kd6 {[%clk 0:00:29.9]}
38. Kd3 {[%clk 0:00:06.7]} 38... Kd5 {[%clk 0:00:28.4]} 39. Be3 {[%clk
0:00:06.2]} 39... Ra3+ {[%clk 0:00:28]} 40. Kd2 {[%clk 0:00:05.7]} 40... Bxd4
{[%clk 0:00:25.4]} 41. Bxd4 {[%clk 0:00:05.9]} 41... Kxd4 {[%clk 0:00:26.3]} 42.
g3 {[%clk 0:00:06.4]} 42... h6 {[%clk 0:00:24.7]} 43. Rb2 {[%clk 0:00:06.5]}
43... Rd3+ {[%clk 0:00:21.6]} 44. Ke2 {[%clk 0:00:06.5]} 44... Re3+ {[%clk
0:00:20.7]} 45. Kf2 {[%clk 0:00:06.2]} 45... Kc3 {[%clk 0:00:10.6]} 46. Rxb4
{[%clk 0:00:06.4]} 46... Re4 {[%clk 0:00:04.9]} 47. Rb7 {[%clk 0:00:05.9]} 47...
g5 {[%clk 0:00:04.2]} 48. fxg5 {[%clk 0:00:05.4]} 48... hxg5 {[%clk 0:00:05.1]}
49. Rg7 {[%clk 0:00:05.4]} 49... g4 {[%clk 0:00:05]} 50. Rh7 {[%clk 0:00:05.5]}
50... Kb2 {[%clk 0:00:04.9]} 51. Ra7 {[%clk 0:00:03.1]} 51... e5 {[%clk
0:00:04.7]} 52. Ra5 {[%clk 0:00:02.7]} 52... f4 {[%clk 0:00:04.5]} 53. gxf4
{[%clk 0:00:03]} 53... exf4 {[%clk 0:00:05.4]} 54. Kg2 {[%clk 0:00:03.4]} 54...
Re2+ {[%clk 0:00:05]} 55. Kg1 {[%clk 0:00:03.4]} 55... f3 {[%clk 0:00:04.2]} 56.
Rg5 {[%clk 0:00:03]} 56... Rg2+ {[%clk 0:00:04.7]} 57. Kh1 {[%clk 0:00:01.5]}
57... Kxa2 {[%clk 0:00:05.6]} 58. h4 {[%clk 0:00:01.1]} 58... gxh3 {[%clk
0:00:05.9]} 0-1

[Event "*** Titled Tuesday Blitz"]
[Site "Chess.com"]
[Date "2021.04.27"]
[Round "1"]
[White "Shuvalov"]
[Black "rasmussvane"]
[Result "0-1"]
[WhiteElo "2454"]
[BlackElo "2914"]
[TimeControl "180+1"]
[EndTime "10:08:26 PDT"]
[Termination "rasmussvane won by resignation"]

1. Nf3 {[%clk 0:02:57.3]} 1... d5 {[%clk 0:02:58.8]} 2. c4 {[%clk 0:02:57.1]}
2... e6 {[%clk 0:02:58.8]} 3. g3 {[%clk 0:02:56.4]} 3... dxc4 {[%clk 0:02:58.7]}
4. Bg2 {[%clk 0:02:54.3]} 4... a6 {[%clk 0:02:58.8]} 5. a4 {[%clk 0:02:50.8]}
5... Nc6 {[%clk 0:02:57.4]} 6. a5 {[%clk 0:02:42.6]} 6... Bb4 {[%clk 0:02:41.3]}
7. Qa4 {[%clk 0:02:40.1]} 7... Bd7 {[%clk 0:02:35.5]} 8. Ne5 {[%clk 0:02:21.5]}
8... Bxd2+ {[%clk 0:02:14.3]} 9. Nxd2 {[%clk 0:02:12.5]} 9... Nxe5 {[%clk
0:02:15.2]} 10. Qb4 {[%clk 0:02:08.1]} 10... Bc6 {[%clk 0:02:14.1]} 11. Bxc6+
{[%clk 0:02:07.2]} 11... bxc6 {[%clk 0:02:08.7]} 12. O-O {[%clk 0:01:50.5]}
12... Ne7 {[%clk 0:02:07.9]} 13. Nxc4 {[%clk 0:01:44.3]} 13... Rb8 {[%clk
0:01:51.1]} 14. Qc3 {[%clk 0:01:41.4]} 14... Nxc4 {[%clk 0:01:49.8]} 15. Qxc4
{[%clk 0:01:42.3]} 15... Rb5 {[%clk 0:01:35.1]} 16. e4 {[%clk 0:01:33.6]} 16...
O-O {[%clk 0:01:32.7]} 17. Be3 {[%clk 0:01:28.3]} 17... Re8 {[%clk 0:01:21.1]}
18. Rfd1 {[%clk 0:01:24.2]} 18... Qc8 {[%clk 0:01:21.5]} 19. b4 {[%clk 0:01:21]}
19... h6 {[%clk 0:01:21.1]} 20. Bc5 {[%clk 0:01:20.5]} 20... Ng6 {[%clk
0:01:19.4]} 21. f4 {[%clk 0:01:14.7]} 21... Qb7 {[%clk 0:01:08.7]} 22. Rd7
{[%clk 0:01:10.8]} 22... Nf8 {[%clk 0:01:08.2]} 23. Rd2 {[%clk 0:01:06.1]} 23...
Qc8 {[%clk 0:01:05.8]} 24. Rad1 {[%clk 0:01:05.6]} 24... Nh7 {[%clk 0:01:03.3]}
25. e5 {[%clk 0:01:02.3]} 25... Nf8 {[%clk 0:01:00.3]} 26. Qe4 {[%clk
0:00:57.4]} 26... Ng6 {[%clk 0:00:43.6]} 27. Qxc6 {[%clk 0:00:50.9]} 27... Nf8
{[%clk 0:00:35.6]} 28. h4 {[%clk 0:00:43.1]} 28... h5 {[%clk 0:00:35.1]} 29. Qf3
{[%clk 0:00:40.3]} 29... g6 {[%clk 0:00:35.3]} 30. Qc6 {[%clk 0:00:39.9]} 30...
Rb8 {[%clk 0:00:33.1]} 31. Rd4 {[%clk 0:00:37.1]} 31... Qb7 {[%clk 0:00:33]} 32.
Qxb7 {[%clk 0:00:36.8]} 32... Rxb7 {[%clk 0:00:33.9]} 33. Kg2 {[%clk 0:00:36.2]}
33... Rbb8 {[%clk 0:00:31.2]} 34. Kf3 {[%clk 0:00:36.4]} 34... Kg7 {[%clk
0:00:31.4]} 35. Ke4 {[%clk 0:00:35.9]} 35... Rec8 {[%clk 0:00:31.2]} 36. Kd3
{[%clk 0:00:35.2]} 36... Re8 {[%clk 0:00:24.3]} 37. Kc4 {[%clk 0:00:35.2]} 37...
Rec8 {[%clk 0:00:24.9]} 38. Be7 {[%clk 0:00:34.6]} 38... Nh7 {[%clk 0:00:23.9]}
39. Rd7 {[%clk 0:00:34]} 39... Rb5 {[%clk 0:00:18.8]} 40. Bc5 {[%clk 0:00:31.8]}
40... Rbb8 {[%clk 0:00:18.1]} 41. Re7 {[%clk 0:00:31.7]} 41... Nf8 {[%clk
0:00:17.5]} 42. Rd2 {[%clk 0:00:29.7]} 42... Kg8 {[%clk 0:00:17.7]} 43. Rg2
{[%clk 0:00:28.5]} 43... Kg7 {[%clk 0:00:17.3]} 44. g4 {[%clk 0:00:28.7]} 44...
hxg4 {[%clk 0:00:18.2]} 45. Rxg4 {[%clk 0:00:29.4]} 45... Kh6 {[%clk 0:00:18.8]}
46. Rxf7 {[%clk 0:00:28.4]} 46... Nh7 {[%clk 0:00:13.4]} 47. Be7 {[%clk
0:00:24]} 47... Rh8 {[%clk 0:00:08.7]} 48. Rg2 {[%clk 0:00:22.7]} 48... Rbg8
{[%clk 0:00:07.5]} 49. Rh2 {[%clk 0:00:19.7]} 49... Kh5 {[%clk 0:00:07.7]} 50.
Bg5 {[%clk 0:00:18.7]} 50... Kg4 {[%clk 0:00:08.1]} 51. Rg2+ {[%clk 0:00:18.6]}
51... Kf3 {[%clk 0:00:08.6]} 52. Rxc7 {[%clk 0:00:18.7]} 52... Kxg2 {[%clk
0:00:08.8]} 53. Rc6 {[%clk 0:00:17.5]} 53... Nxg5 {[%clk 0:00:09.2]} 54. hxg5
{[%clk 0:00:18.4]} 54... Rh4 {[%clk 0:00:09.6]} 55. Kc5 {[%clk 0:00:18.4]} 55...
Rxf4 {[%clk 0:00:08.2]} 56. Rxa6 {[%clk 0:00:18.5]} 56... Re4 {[%clk 0:00:08.4]}
57. Rxe6 {[%clk 0:00:18]} 57... Rc8+ {[%clk 0:00:06.2]} 58. Kb5 {[%clk 0:00:18]}
58... Rb8+ {[%clk 0:00:06.2]} 59. Rb6 {[%clk 0:00:18.6]} 59... Rxe5+ {[%clk
0:00:06.7]} 60. Ka6 {[%clk 0:00:18.4]} 60... Rd8 {[%clk 0:00:05.8]} 61. b5
{[%clk 0:00:18.2]} 61... Rxg5 {[%clk 0:00:06.2]} 62. Rb7 {[%clk 0:00:17.4]}
62... Rdd5 {[%clk 0:00:05.6]} 63. Ka7 {[%clk 0:00:16.2]} 63... Rxb5 {[%clk
0:00:05.7]} 64. Rxb5 {[%clk 0:00:16.8]} 64... Rxb5 {[%clk 0:00:06.6]} 65. a6
{[%clk 0:00:17.7]} 65... Ra5 {[%clk 0:00:07.2]} 66. Kb7 {[%clk 0:00:17.8]} 66...
Rxa6 {[%clk 0:00:07.4]} 67. Kxa6 {[%clk 0:00:18.7]} 67... g5 {[%clk 0:00:08.3]}
0-1

[Event "*** Titled Tuesday Blitz"]
[Site "Chess.com"]
[Date "2021.04.27"]
[Round "1"]
[White "maximych26"]
[Black "mac0504"]
[Result "1/2-1/2"]
[WhiteElo "2288"]
[BlackElo "2595"]
[TimeControl "180+1"]
[EndTime "10:08:32 PDT"]
[Termination "Game drawn by repetition"]

1. e4 {[%clk 0:03:00.9]} 1... c5 {[%clk 0:02:54.9]} 2. Nf3 {[%clk 0:03:00.4]}
2... e6 {[%clk 0:02:55.2]} 3. c3 {[%clk 0:02:59.4]} 3... Nf6 {[%clk 0:02:54.2]}
4. e5 {[%clk 0:02:59.2]} 4... Nd5 {[%clk 0:02:54.9]} 5. d4 {[%clk 0:02:59.4]}
5... cxd4 {[%clk 0:02:54.7]} 6. cxd4 {[%clk 0:02:59]} 6... d6 {[%clk 0:02:55.3]}
7. Nc3 {[%clk 0:02:45.9]} 7... Nxc3 {[%clk 0:02:48.2]} 8. bxc3 {[%clk
0:02:45.5]} 8... Qc7 {[%clk 0:02:48.8]} 9. Bd2 {[%clk 0:02:43.9]} 9... Nc6
{[%clk 0:02:47.4]} 10. Bb5 {[%clk 0:02:41]} 10... Bd7 {[%clk 0:02:46.5]} 11.
exd6 {[%clk 0:02:30.6]} 11... Bxd6 {[%clk 0:02:45.2]} 12. O-O {[%clk 0:02:31.2]}
12... O-O {[%clk 0:02:44.5]} 13. Qe2 {[%clk 0:02:30.3]} 13... Rac8 {[%clk
0:02:36.9]} 14. Rab1 {[%clk 0:02:29.1]} 14... Ne7 {[%clk 0:02:31.9]} 15. Bd3
{[%clk 0:02:28]} 15... Ng6 {[%clk 0:02:30.1]} 16. g3 {[%clk 0:02:22.3]} 16...
Bc6 {[%clk 0:02:29.9]} 17. h4 {[%clk 0:02:17.7]} 17... Bd5 {[%clk 0:02:12.6]}
18. h5 {[%clk 0:02:17.1]} 18... Ne7 {[%clk 0:02:12.8]} 19. Ne5 {[%clk
0:02:04.4]} 19... f6 {[%clk 0:01:48.1]} 20. Ng4 {[%clk 0:01:48.9]} 20... f5
{[%clk 0:01:10.6]} 21. Ne5 {[%clk 0:01:47.4]} 21... Bxe5 {[%clk 0:01:10.8]} 22.
dxe5 {[%clk 0:01:46.7]} 22... b6 {[%clk 0:01:06.1]} 23. a4 {[%clk 0:01:44.9]}
23... Rfd8 {[%clk 0:00:54.4]} 24. Bg5 {[%clk 0:01:39.4]} 24... h6 {[%clk
0:00:45.9]} 25. Bh4 {[%clk 0:01:38.6]} 25... Bb7 {[%clk 0:00:34.7]} 26. Ba6
{[%clk 0:01:25.5]} 26... Rd5 {[%clk 0:00:26.9]} 27. Bxe7 {[%clk 0:01:16.9]}
27... Qxe7 {[%clk 0:00:25.8]} 28. Bxb7 {[%clk 0:01:10.3]} 28... Qxb7 {[%clk
0:00:26.7]} 29. Rfd1 {[%clk 0:01:05.5]} 29... Rxc3 {[%clk 0:00:24.2]} 30. Rxd5
{[%clk 0:01:04.1]} 30... Qxd5 {[%clk 0:00:25.1]} 31. Rd1 {[%clk 0:01:03.8]}
31... Qc4 {[%clk 0:00:18.9]} 32. Rd8+ {[%clk 0:01:01.1]} 32... Kh7 {[%clk
0:00:19.3]} 33. Qxc4 {[%clk 0:00:29.6]} 33... Rxc4 {[%clk 0:00:20.2]} 34. a5
{[%clk 0:00:29.8]} 34... bxa5 {[%clk 0:00:12.1]} 35. Rd7 {[%clk 0:00:30]} 35...
a4 {[%clk 0:00:04.8]} 36. Rxa7 {[%clk 0:00:29.1]} 36... Re4 {[%clk 0:00:05.4]}
37. f4 {[%clk 0:00:28.4]} 37... Re3 {[%clk 0:00:03.1]} 38. Kf2 {[%clk
0:00:28.8]} 38... Ra3 {[%clk 0:00:02.5]} 39. Kg2 {[%clk 0:00:26.9]} 39... Ra2+
{[%clk 0:00:03.1]} 40. Kf3 {[%clk 0:00:26.8]} 40... a3 {[%clk 0:00:03.2]} 41.
Ra6 {[%clk 0:00:26.5]} 41... Ra1 {[%clk 0:00:02.6]} 42. Kg2 {[%clk 0:00:25.4]}
42... a2 {[%clk 0:00:02.7]} 43. Kh2 {[%clk 0:00:25.5]} 43... Kg8 {[%clk
0:00:03.3]} 44. Ra7 {[%clk 0:00:24.3]} 44... Kf8 {[%clk 0:00:03.7]} 45. Kg2
{[%clk 0:00:24.7]} 45... Ke8 {[%clk 0:00:04.2]} 46. Kh2 {[%clk 0:00:24.8]} 46...
Kd8 {[%clk 0:00:04.8]} 47. Kg2 {[%clk 0:00:24.9]} 47... Kc8 {[%clk 0:00:04.9]}
48. Ra3 {[%clk 0:00:23.2]} 48... Kb7 {[%clk 0:00:04.9]} 49. Kh2 {[%clk
0:00:23.3]} 49... Kb6 {[%clk 0:00:05.3]} 50. Kg2 {[%clk 0:00:23.3]} 50... Kc5
{[%clk 0:00:05.8]} 51. Ra8 {[%clk 0:00:23.2]} 51... Kd4 {[%clk 0:00:05.7]} 52.
Ra4+ {[%clk 0:00:22]} 52... Ke3 {[%clk 0:00:05.9]} 53. Ra3+ {[%clk 0:00:21.8]}
53... Kd2 {[%clk 0:00:05.4]} 54. Ra8 {[%clk 0:00:21.6]} 54... Ke3 {[%clk
0:00:04.9]} 55. Ra3+ {[%clk 0:00:20.9]} 55... Kd4 {[%clk 0:00:05.6]} 56. Ra4+
{[%clk 0:00:19.2]} 56... Kd3 {[%clk 0:00:05.8]} 57. Ra3+ {[%clk 0:00:19.1]}
57... Kc2 {[%clk 0:00:06.4]} 58. Ra8 {[%clk 0:00:19.1]} 58... Kb2 {[%clk
0:00:06.7]} 59. Rb8+ {[%clk 0:00:18.9]} 59... Kc3 {[%clk 0:00:07.3]} 60. Rc8+
{[%clk 0:00:18.8]} 60... Kd3 {[%clk 0:00:07.6]} 61. Ra8 {[%clk 0:00:18.1]} 61...
Re1 {[%clk 0:00:05.7]} 62. Rxa2 {[%clk 0:00:17.4]} 62... Re2+ {[%clk 0:00:06.3]}
63. Rxe2 {[%clk 0:00:17]} 63... Kxe2 {[%clk 0:00:07.2]} 64. Kh2 {[%clk
0:00:15.6]} 64... Kf3 {[%clk 0:00:06.7]} 65. Kh3 {[%clk 0:00:15.5]} 65... Ke4
{[%clk 0:00:03]} 66. Kg2 {[%clk 0:00:15.6]} 66... Ke3 {[%clk 0:00:03.2]} 67. Kh2
{[%clk 0:00:15.7]} 67... Kf3 {[%clk 0:00:03.7]} 68. Kh3 {[%clk 0:00:15.8]} 68...
Ke4 {[%clk 0:00:04.4]} 69. Kg2 {[%clk 0:00:15.6]} 69... Ke3 {[%clk 0:00:05]} 70.
Kh2 {[%clk 0:00:15.4]} 70... Kf3 {[%clk 0:00:03.8]} 1/2-1/2

[Event "*** Titled Tuesday Blitz"]
[Site "Chess.com"]
[Date "2021.04.27"]
[Round "1"]
[White "VladimirBelous"]
[Black "WPWPWP-2015"]
[Result "1/2-1/2"]
[WhiteElo "2737"]
[BlackElo "2411"]
[TimeControl "180+1"]
[EndTime "10:08:38 PDT"]
[Termination "Game drawn by repetition"]

1. c4 {[%clk 0:03:00.9]} 1... e5 {[%clk 0:02:54.6]} 2. g3 {[%clk 0:02:58.6]}
2... Nf6 {[%clk 0:02:54.1]} 3. Bg2 {[%clk 0:02:58.2]} 3... d5 {[%clk 0:02:54.5]}
4. cxd5 {[%clk 0:02:57.8]} 4... Nxd5 {[%clk 0:02:55.4]} 5. Nf3 {[%clk
0:02:58.1]} 5... Nc6 {[%clk 0:02:54.8]} 6. O-O {[%clk 0:02:58.7]} 6... Be7
{[%clk 0:02:53.7]} 7. d4 {[%clk 0:02:59.3]} 7... exd4 {[%clk 0:02:52]} 8. Nxd4
{[%clk 0:03:00.2]} 8... Nxd4 {[%clk 0:02:51.7]} 9. Qxd4 {[%clk 0:03:00.4]} 9...
Nf6 {[%clk 0:02:51.8]} 10. Qa4+ {[%clk 0:03:00.9]} 10... c6 {[%clk 0:02:50.9]}
11. Rd1 {[%clk 0:02:58.7]} 11... Bd7 {[%clk 0:02:48.2]} 12. Nc3 {[%clk
0:02:43.5]} 12... O-O {[%clk 0:02:46.4]} 13. Bg5 {[%clk 0:02:44]} 13... Qc8
{[%clk 0:02:29]} 14. Rac1 {[%clk 0:02:40.7]} 14... h6 {[%clk 0:02:28.8]} 15. Bf4
{[%clk 0:02:38]} 15... Bh3 {[%clk 0:01:56.3]} 16. e4 {[%clk 0:02:37.7]} 16...
Bxg2 {[%clk 0:01:55.6]} 17. Kxg2 {[%clk 0:02:38.6]} 17... Qe6 {[%clk 0:01:52.3]}
18. f3 {[%clk 0:02:23.4]} 18... a6 {[%clk 0:01:49.8]} 19. Bc7 {[%clk 0:02:08]}
19... Rac8 {[%clk 0:01:43.6]} 20. Bb6 {[%clk 0:01:59.7]} 20... Nd7 {[%clk
0:01:41.4]} 21. Bf2 {[%clk 0:01:56.2]} 21... Rfd8 {[%clk 0:01:37.7]} 22. Qc2
{[%clk 0:01:48.3]} 22... Nf6 {[%clk 0:01:30.1]} 23. a4 {[%clk 0:01:30.9]} 23...
Bb4 {[%clk 0:01:23.8]} 24. Ne2 {[%clk 0:01:30.3]} 24... Qe7 {[%clk 0:01:16.9]}
25. Nd4 {[%clk 0:01:27.8]} 25... g6 {[%clk 0:01:14.3]} 26. Be3 {[%clk
0:01:16.8]} 26... Kh7 {[%clk 0:01:11.3]} 27. Qb3 {[%clk 0:01:11]} 27... Ba5
{[%clk 0:00:51.3]} 28. Qc2 {[%clk 0:01:01.1]} 28... Rd7 {[%clk 0:00:47.1]} 29.
Nb3 {[%clk 0:00:59.3]} 29... Bb4 {[%clk 0:00:42]} 30. Rxd7 {[%clk 0:00:59.1]}
30... Nxd7 {[%clk 0:00:39.8]} 31. Rd1 {[%clk 0:00:58.1]} 31... Ne5 {[%clk
0:00:39.3]} 32. Qc1 {[%clk 0:00:55]} 32... Rd8 {[%clk 0:00:29.4]} 33. Bd4 {[%clk
0:00:33.9]} 33... h5 {[%clk 0:00:25.7]} 34. Qc2 {[%clk 0:00:24.6]} 34... Rd7
{[%clk 0:00:19]} 35. h4 {[%clk 0:00:20.1]} 35... f6 {[%clk 0:00:18.3]} 36. Bf2
{[%clk 0:00:13.9]} 36... Bd6 {[%clk 0:00:17.1]} 37. Nc5 {[%clk 0:00:12.5]} 37...
Bxc5 {[%clk 0:00:16.5]} 38. Bxc5 {[%clk 0:00:13.3]} 38... Qe6 {[%clk 0:00:16.2]}
39. Rd4 {[%clk 0:00:12.3]} 39... Rxd4 {[%clk 0:00:15.9]} 40. Bxd4 {[%clk
0:00:12.5]} 40... Nd7 {[%clk 0:00:16.6]} 41. b3 {[%clk 0:00:09.7]} 41... Qd6
{[%clk 0:00:16.5]} 42. Qc4 {[%clk 0:00:09]} 42... Kg7 {[%clk 0:00:15.8]} 43. Kf2
{[%clk 0:00:09.5]} 43... b5 {[%clk 0:00:15.4]} 44. Qd3 {[%clk 0:00:07.5]} 44...
Kf7 {[%clk 0:00:12.6]} 45. Qc3 {[%clk 0:00:06.2]} 45... c5 {[%clk 0:00:12.3]}
46. Be3 {[%clk 0:00:06.7]} 46... Qc6 {[%clk 0:00:12.3]} 47. Qc2 {[%clk
0:00:06.1]} 47... Qd6 {[%clk 0:00:12.3]} 48. Qe2 {[%clk 0:00:05.7]} 48... Qc6
{[%clk 0:00:12.4]} 49. Qc2 {[%clk 0:00:04.9]} 49... c4 {[%clk 0:00:12.8]} 50.
bxc4 {[%clk 0:00:04.4]} 50... bxc4 {[%clk 0:00:13.2]} 51. Bd4 {[%clk 0:00:05.3]}
51... Nf8 {[%clk 0:00:11.6]} 52. Qc3 {[%clk 0:00:05.8]} 52... Nd7 {[%clk
0:00:11.8]} 53. Ke3 {[%clk 0:00:05.8]} 53... Qxa4 {[%clk 0:00:11.9]} 54. Qb2
{[%clk 0:00:05.3]} 54... Qb3+ {[%clk 0:00:12]} 55. Qxb3 {[%clk 0:00:05.7]} 55...
cxb3 {[%clk 0:00:12.9]} 56. Kd3 {[%clk 0:00:06.5]} 56... a5 {[%clk 0:00:13.4]}
57. Kc3 {[%clk 0:00:07]} 57... Ne5 {[%clk 0:00:13]} 58. Bxe5 {[%clk 0:00:05.7]}
58... fxe5 {[%clk 0:00:12.7]} 59. Kxb3 {[%clk 0:00:06.6]} 59... g5 {[%clk
0:00:11.5]} 60. hxg5 {[%clk 0:00:04.2]} 60... Kg6 {[%clk 0:00:11.1]} 61. Ka4
{[%clk 0:00:04.1]} 61... Kxg5 {[%clk 0:00:11.5]} 62. Kxa5 {[%clk 0:00:05]} 62...
h4 {[%clk 0:00:11.9]} 63. gxh4+ {[%clk 0:00:05.5]} 63... Kxh4 {[%clk 0:00:12.3]}
64. Kb5 {[%clk 0:00:06.4]} 64... Kg3 {[%clk 0:00:12.6]} 65. Kc4 {[%clk
0:00:02.1]} 65... Kxf3 {[%clk 0:00:12.6]} 66. Kd3 {[%clk 0:00:02.4]} 66... Kf4
{[%clk 0:00:12.9]} 67. Kd2 {[%clk 0:00:02.5]} 67... Kxe4 {[%clk 0:00:13.3]} 68.
Ke2 {[%clk 0:00:03.4]} 68... Kd4 {[%clk 0:00:13.9]} 69. Kd2 {[%clk 0:00:03.9]}
69... Ke4 {[%clk 0:00:14.3]} 70. Ke2 {[%clk 0:00:04.4]} 70... Kf4 {[%clk
0:00:15]} 71. Kf2 {[%clk 0:00:04.9]} 71... e4 {[%clk 0:00:15.6]} 72. Ke2 {[%clk
0:00:05.4]} 72... e3 {[%clk 0:00:16.1]} 73. Ke1 {[%clk 0:00:06]} 73... Ke4
{[%clk 0:00:16.7]} 74. Ke2 {[%clk 0:00:06.2]} 74... Kd4 {[%clk 0:00:17.6]} 75.
Ke1 {[%clk 0:00:06.8]} 75... Kd3 {[%clk 0:00:18.5]} 76. Kd1 {[%clk 0:00:07.2]}
76... Ke4 {[%clk 0:00:19.4]} 77. Ke2 {[%clk 0:00:07.6]} 77... Kf4 {[%clk
0:00:20.3]} 78. Ke1 {[%clk 0:00:07.7]} 78... Kg3 {[%clk 0:00:21]} 79. Ke2 {[%clk
0:00:07.9]} 79... Kf4 {[%clk 0:00:21.8]} 1/2-1/2